bitfinex-derivatives/quotes_BNBF0:USTF0_20250529
["timestamp","ask_amount","ask_price","bid_price","bid_amount"]
[1748530769237,0.29221822,684.42,682.69,0.46494186]
[1748530769439,0.29221822,684.42,682.7,0.29295444]
[1748530770941,0.29221822,684.42,682.73,0.46494186]
[1748530771441,0.29221822,684.42,682.72,0.46494186]
[1748530771639,0.29221822,684.42,682.71,0.89694186]
[1748530772237,0.29221822,684.42,682.71,0.432]
[1748530796757,0.29221822,684.42,682.71,0.89694186]
[1748530797653,0.29221822,684.42,682.72,0.46494186]
[1748530797952,0.29221822,684.42,682.71,0.89694186]
[1748530798156,0.29221822,684.42,682.71,0.432]
[1748530799455,0.2546121,684.0,682.71,0.432]
[1748530799757,0.29240193,683.99,682.71,0.432]
[1748530815067,0.29240193,683.99,682.52,0.46494186]
[1748530822873,0.29240193,683.99,682.56,0.46494186]
[1748530823473,0.29240193,683.99,682.55,0.46494186]
[1748530823670,0.29240193,683.99,682.56,0.46494186]
[1748530824670,0.29240193,683.99,682.57,0.46494186]
[1748530825677,0.29240193,683.99,682.5,0.46494186]
[1748530825871,0.29240193,683.99,682.51,0.46494186]
[1748530826077,0.29240193,683.99,682.49,0.46494186]
[1748530826580,0.29240193,683.99,682.5,0.46494186]
[1748530826774,0.29240193,683.99,682.48,0.46494186]
[1748530827679,0.29240193,683.99,682.49,0.46494186]
[1748530827879,0.29240193,683.99,682.48,0.46494186]
[1748530828474,0.29240193,683.99,682.49,0.46494186]
[1748530829275,0.29240193,683.99,682.25,0.46494186]
[1748530829582,0.29240193,683.99,682.26,0.29314337]
[1748530832081,0.29240193,683.99,682.28,0.46494186]
[1748530832379,0.29240193,683.99,682.29,0.29313048]
[1748530832583,0.29240193,683.99,682.3,0.46494186]
[1748530832783,0.29240193,683.99,682.31,0.29312189]
[1748530833584,0.29240193,683.99,682.31,0.75806375]
[1748530834181,0.29240193,683.99,682.32,0.46494186]
[1748530834383,0.29240193,683.99,682.65,0.46494186]
[1748530834580,0.29240193,683.99,682.67,0.46494186]
[1748530834783,0.29240193,683.99,682.66,0.46494186]
[1748530834984,0.29240193,683.99,682.78,0.46494186]
[1748530835186,0.29240193,683.99,682.33,0.2931133]
[1748530835187,0.29240193,683.99,682.72,0.46494186]
[1748530835584,0.29240193,683.99,682.73,0.46494186]
[1748530835785,0.29240193,683.99,682.71,0.46494186]
[1748530836181,0.29240193,683.99,682.73,0.46494186]
[1748530836884,0.29240193,683.99,682.71,0.46494186]
[1748530837188,0.29240193,683.99,682.72,0.46494186]
[1748530837388,0.29240193,683.99,682.33,0.75805516]
[1748530837389,0.29240193,683.99,682.7,0.46494186]
[1748530837689,0.29240193,683.99,682.71,0.46494186]
[1748530837884,0.29240193,683.99,682.76,0.46494186]
[1748530838090,0.29240193,683.99,682.77,0.46494186]
[1748530838290,0.29240193,683.99,682.33,0.2931133]
[1748530838291,0.29240193,683.99,682.72,0.46494186]
[1748530838590,0.29240193,683.99,682.59,0.46494186]
[1748530838987,0.29240193,683.99,682.64,0.46494186]
[1748530839388,0.29240193,683.99,682.59,0.46494186]
[1748530839785,0.29240193,683.99,682.58,0.46494186]
[1748530840286,0.29240193,683.99,682.59,0.46494186]
[1748530840494,0.29240193,683.99,682.58,0.46494186]
[1748530840994,0.29240193,683.99,682.57,0.46494186]
[1748530841391,0.29240193,683.99,682.58,0.46494186]
[1748530841791,0.29240193,683.99,682.33,0.2931133]
[1748530849001,0.29240193,683.99,682.42,0.46494186]
[1748530849900,0.29240193,683.99,682.43,0.46494186]
[1748530850601,0.29240193,683.99,682.65,0.46494186]
[1748530851101,0.29240193,683.99,682.64,0.46494186]
[1748530852300,0.29240193,683.99,682.65,0.46494186]
[1748530852803,0.29240193,683.99,682.64,0.46494186]
[1748530853303,0.29240193,683.99,682.43,0.46494186]
[1748530854503,0.29240193,683.99,682.41,0.46494186]
[1748530855007,0.29240193,683.99,682.34,0.463]
[1748530861508,0.29240193,683.99,682.43,0.46494186]
[1748530862010,0.29240193,683.99,682.45,0.46494186]
[1748530862305,0.29240193,683.99,682.48,0.46494186]
[1748530862907,0.29240193,683.99,682.35,0.46494186]
[1748530863508,0.29240193,683.99,682.34,0.463]
[1748530872917,0.29240193,683.99,682.33,0.2931133]
[1748530875016,0.29240193,683.99,682.34,0.352]
[1748530880527,0.29240193,683.99,682.36,0.46494186]
[1748530881422,0.29240193,683.99,682.37,0.46494186]
[1748530882523,0.29240193,683.99,682.34,0.81694186]
[1748530883028,0.29240193,683.99,682.34,0.352]
[1748530889431,0.29240193,683.99,682.73,0.46494186]
[1748530890229,0.29240193,683.99,682.74,0.46494186]
[1748530890737,0.29240193,683.99,682.73,0.46494186]
[1748530891029,0.29240193,683.99,682.67,0.46494186]
[1748530891734,0.29240193,683.99,682.69,0.46494186]
[1748530892435,0.29240193,683.99,682.65,0.46494186]
[1748530893332,0.29240193,683.99,682.64,0.46494186]
[1748530894235,0.29240193,683.99,682.67,0.46494186]
[1748530894536,0.29240193,683.99,682.66,0.46494186]
[1748530894934,0.29240193,683.99,682.67,0.46494186]
[1748530895135,0.29240193,683.99,682.63,0.46494186]
[1748530895432,0.29240193,683.99,682.61,0.46494186]
[1748530896437,0.29240193,683.99,682.6,0.46494186]
[1748530897234,0.29240193,683.99,682.63,0.46494186]
[1748530897433,0.29240193,683.99,682.62,0.46494186]
[1748530898437,0.29240193,683.99,682.64,0.46494186]
[1748530898838,0.29240193,683.99,682.66,0.46494186]
[1748530899333,0.29240193,683.99,682.65,0.46494186]
[1748530899533,0.29240193,683.99,682.64,0.46494186]
[1748530900233,0.29240193,683.99,682.55,0.46494186]
[1748530900436,0.29240193,683.99,682.54,0.46494186]
[1748530900635,0.29240193,683.99,682.55,0.46494186]
[1748530901239,0.29240193,683.99,682.34,0.352]
[1748530901634,0.29240193,683.99,682.35,0.29310471]
[1748530905741,0.29240193,683.99,682.46,0.46494186]
[1748530906436,0.29240193,683.99,682.45,0.46494186]
[1748530907137,0.29240193,683.99,682.46,0.394]
[1748530909641,0.29240193,683.99,682.47,0.29305317]
[1748530922948,0.29240193,683.99,682.5,0.46494186]
[1748530923441,0.29240193,683.99,682.81,0.46494186]
[1748530923648,0.29240193,683.99,682.8,0.46494186]
[1748530924349,0.29240193,683.99,682.82,0.46494186]
[1748530924648,0.29240193,683.99,682.47,0.29305317]
[1748530924649,0.29240193,683.99,682.84,0.46494186]
[1748530924847,0.29240193,683.99,682.47,0.29305317]
[1748530924848,0.29240193,683.99,682.83,0.46494186]
[1748530925044,0.29240193,683.99,682.8,0.46494186]
[1748530925348,0.29240193,683.99,682.47,0.29305317]
[1748530925349,0.29240193,683.99,682.55,0.46494186]
[1748530925546,0.29240193,683.99,682.56,0.29301453]
[1748530935660,0.29240193,683.99,682.72,0.46494186]
[1748530935853,0.29240193,683.99,682.56,0.29301453]
[1748530935854,0.29240193,683.99,682.65,0.46494186]
[1748530936359,0.29240193,683.99,682.68,0.46494186]
[1748530937457,0.29240193,683.99,682.67,0.46494186]
[1748530937656,0.29240193,683.99,682.68,0.46494186]
[1748530939260,0.29240193,683.99,682.67,0.46494186]
[1748530939463,0.29240193,683.99,682.67,0.29296731]
[1748530941559,0.29240193,683.99,682.68,0.333]
[1748530951071,0.29240193,683.99,682.73,0.46494186]
[1748530951772,0.29240193,683.99,682.74,0.46494186]
[1748530951965,0.29240193,683.99,682.75,0.46494186]
[1748530952771,0.29240193,683.99,682.74,0.46494186]
[1748530953170,0.29240193,683.99,682.76,0.46494186]
[1748530953765,0.29240193,683.99,682.77,0.46494186]
[1748530954171,0.29240193,683.99,682.78,0.46494186]
[1748530954971,0.29240193,683.99,682.79,0.46494186]
[1748530955169,0.29240193,683.99,682.68,0.333]
[1748530955170,0.29240193,683.99,682.92,0.46494186]
[1748530955372,0.29240193,683.99,682.91,0.46494186]
[1748530956171,0.29240193,683.99,682.93,0.46494186]
[1748530956567,0.29240193,683.99,682.89,0.46494186]
[1748530956972,0.29240193,683.99,682.68,0.333]
[1748530956973,0.29240193,683.99,682.91,0.46494186]
[1748530957473,0.29240193,683.99,682.94,0.46494186]
[1748530958371,0.29240193,683.99,682.93,0.46494186]
[1748530958772,0.29240193,683.99,682.99,0.46494186]
[1748530958970,0.29240193,683.99,682.67,0.29296731]
[1748530958971,0.29240193,683.99,682.97,0.46494186]
[1748530959271,0.29240193,683.99,682.67,0.29296731]
[1748530959272,0.29240193,683.99,682.96,0.46494186]
[1748530959871,0.29240193,683.99,682.95,0.46494186]
[1748530961175,0.29240193,683.99,682.96,0.485]
[1748530990293,0.29240193,683.99,682.91,0.46494186]
[1748530991598,0.29240193,683.99,682.9,0.46494186]
[1748530992500,0.29240193,683.99,682.91,0.315]
[1748531004713,0.29240193,683.99,682.67,0.29296731]
[1748531013524,0.29240193,683.99,682.67,0.75790917]
[1748531013726,0.29240193,683.99,682.67,0.29296731]
[1748531014524,0.29240193,683.99,682.67,0.75790917]
[1748531014721,0.29240193,683.99,682.7,0.46494186]
[1748531015323,0.29240193,683.99,682.69,0.46494186]
[1748531015729,0.29240193,683.99,682.68,0.46494186]
[1748531016225,0.29240193,683.99,682.67,0.29296731]
[1748531022135,0.29240193,683.99,682.4,0.46494186]
[1748531023632,0.29240193,683.99,682.35,0.46494186]
[1748531024237,0.29240193,683.99,682.36,0.46494186]
[1748531024432,0.29240193,683.99,682.34,0.46494186]
[1748531024737,0.29240193,683.99,682.33,0.46494186]
[1748531025338,0.29240193,683.99,682.32,0.46494186]
[1748531026034,0.29240193,683.99,682.33,0.46494186]
[1748531026838,0.29240193,683.99,682.1,0.385]
[1748531026839,0.29240193,683.99,682.34,0.46494186]
[1748531027032,0.29240193,683.99,682.35,0.46494186]
[1748531028540,0.29240193,683.99,682.34,0.46494186]
[1748531028739,0.29240193,683.99,682.35,0.46494186]
[1748531029135,0.29240193,683.99,682.34,0.46494186]
[1748531029536,0.29240193,683.99,682.35,0.46494186]
[1748531029740,0.29240193,683.99,682.36,0.46494186]
[1748531030041,0.29240193,683.99,682.37,0.46494186]
[1748531030442,0.29240193,683.99,682.38,0.46494186]
[1748531030642,0.29240193,683.99,682.39,0.46494186]
[1748531031142,0.29240193,683.99,682.4,0.46494186]
[1748531031544,0.29240193,683.99,682.41,0.46494186]
[1748531032146,0.29240193,683.99,682.42,0.464]
[1748531032641,0.29240193,683.99,682.42,0.92894186]
[1748531032841,0.29240193,683.99,682.42,0.464]
[1748531033548,0.29240193,683.99,682.42,0.92894186]
[1748531034149,0.29240193,683.99,682.49,0.46494186]
[1748531034345,0.29240193,683.99,682.42,0.464]
[1748531043852,0.29240193,683.99,682.54,0.46494186]
[1748531044052,0.29240193,683.99,682.53,0.46494186]
[1748531044349,0.29240193,683.99,682.55,0.46494186]
[1748531044554,0.29240193,683.99,682.57,0.46494186]
[1748531044951,0.29240193,683.99,682.55,0.46494186]
[1748531047055,0.29240193,683.99,682.56,0.398]
[1748531059057,0.29240193,683.99,682.49,0.46494186]
[1748531061067,0.29240193,683.99,682.5,0.326]
[1748531075075,0.29240193,683.99,682.24,0.46494186]
[1748531076175,0.29240193,683.99,682.21,0.46494186]
[1748531077282,0.29240193,683.99,682.11,0.46494186]
[1748531077481,0.29240193,683.99,682.11,0.29320784]
[1748531088792,0.29240193,683.99,682.26,0.46494186]
[1748531088989,0.29240193,683.99,682.38,0.46494186]
[1748531089387,0.29240193,683.99,682.42,0.46494186]
[1748531090993,0.29240193,683.99,682.57,0.46494186]
[1748531091291,0.29240193,683.99,682.54,0.46494186]
[1748531092094,0.29240193,683.99,682.51,0.46494186]
[1748531092497,0.29240193,683.99,682.46,0.46494186]
[1748531092896,0.29240193,683.99,682.43,0.46494186]
[1748531093693,0.29240193,683.99,682.41,0.46494186]
[1748531094494,0.29240193,683.99,682.4,0.46494186]
[1748531095500,0.29240193,683.99,682.39,0.46494186]
[1748531097595,0.29240193,683.99,682.11,0.29320784]
[1748531097596,0.29240193,683.99,682.4,0.46494186]
[1748531098496,0.29240193,683.99,682.38,0.46494186]
[1748531099696,0.29240193,683.99,682.39,0.46494186]
[1748531101099,0.29240193,683.99,682.4,0.46494186]
[1748531101998,0.29240193,683.99,682.42,0.46494186]
[1748531102398,0.29240193,683.99,682.46,0.46494186]
[1748531102801,0.29240193,683.99,682.48,0.46494186]
[1748531103002,0.29240193,683.99,682.47,0.46494186]
[1748531103602,0.29240193,683.99,682.5,0.46494186]
[1748531104207,0.29240193,683.99,682.12,0.46494186]
[1748531104406,0.29240193,683.99,682.11,0.29320784]
[1748531109915,0.29240193,683.99,682.29,0.46494186]
[1748531110115,0.29240193,683.99,682.28,0.46494186]
[1748531110514,0.29240193,683.99,682.29,0.46494186]
[1748531111020,0.29240193,683.99,682.28,0.46494186]
[1748531111219,0.29240193,683.99,682.27,0.46494186]
[1748531111416,0.29240193,683.99,682.28,0.46494186]
[1748531111918,0.29240193,683.99,682.29,0.46494186]
[1748531112515,0.29240193,683.99,682.28,0.46494186]
[1748531112719,0.29240193,683.99,682.11,0.29320784]
[1748531112720,0.29240193,683.99,682.26,0.46494186]
[1748531113614,0.29240193,683.99,682.27,0.46494186]
[1748531114021,0.29240193,683.99,682.25,0.46494186]
[1748531114223,0.29240193,683.99,682.23,0.46494186]
[1748531114517,0.29240193,683.99,682.22,0.46494186]
[1748531114721,0.29240193,683.99,682.11,0.29320784]
[1748531114722,0.29240193,683.99,682.27,0.46494186]
[1748531115020,0.29240193,683.99,682.25,0.46494186]
[1748531115223,0.29240193,683.99,682.23,0.46494186]
[1748531115422,0.29240193,683.99,682.11,0.29320784]
[1748531115423,0.29240193,683.99,682.22,0.46494186]
[1748531115623,0.29240193,683.99,682.2,0.46494186]
[1748531116226,0.29240193,683.99,682.18,0.46494186]
[1748531117224,0.29240193,683.99,682.11,0.29320784]
[1748531117225,0.29240193,683.99,682.16,0.46494186]
[1748531117630,0.29240193,683.99,682.17,0.46494186]
[1748531118320,0.29240193,683.99,682.16,0.46494186]
[1748531118822,0.29240193,683.99,682.15,0.46494186]
[1748531119121,0.29240193,683.99,682.14,0.46494186]
[1748531119325,0.29240193,683.99,682.11,0.29320784]
[1748531124624,0.29240193,683.99,682.12,0.46494186]
[1748531124822,0.25477427,683.53,682.13,0.46494186]
[1748531125129,0.29260727,683.51,682.15,0.46494186]
[1748531125523,0.29260727,683.51,682.17,0.46494186]
[1748531126028,0.29260727,683.51,682.12,0.485]
[1748531126029,0.29260727,683.51,682.18,0.46494186]
[1748531126528,0.29260727,683.51,682.38,0.46494186]
[1748531127626,0.29260727,683.51,682.12,0.485]
[1748531127929,0.29260727,683.51,682.26,0.46494186]
[1748531128527,0.29260727,683.51,682.42,0.46494186]
[1748531128933,0.29260727,683.51,682.41,0.46494186]
[1748531129133,0.29260727,683.51,682.4,0.46494186]
[1748531129529,0.29260727,683.51,682.37,0.46494186]
[1748531129734,0.29260727,683.51,682.36,0.46494186]
[1748531130128,0.29260727,683.51,682.37,0.46494186]
[1748531130733,0.29260727,683.51,682.36,0.46494186]
[1748531131131,0.29260727,683.51,682.34,0.46494186]
[1748531131731,0.29260727,683.51,682.32,0.46494186]
[1748531131935,0.29260727,683.51,682.24,0.46494186]
[1748531132136,0.29260727,683.51,682.2,0.46494186]
[1748531132336,0.29260727,683.51,682.21,0.46494186]
[1748531132833,0.29260727,683.51,682.2,0.46494186]
[1748531133537,0.29260727,683.51,682.19,0.46494186]
[1748531133738,0.29260727,683.51,682.18,0.46494186]
[1748531134336,0.29260727,683.51,682.2,0.46494186]
[1748531135141,0.29260727,683.51,682.19,0.46494186]
[1748531135543,0.29260727,683.51,682.12,0.485]
[1748531135544,0.29260727,683.51,682.17,0.46494186]
[1748531135739,0.29260727,683.51,682.18,0.46494186]
[1748531135938,0.29260727,683.51,682.17,0.46494186]
[1748531136144,0.29260727,683.51,682.23,0.46494186]
[1748531136346,0.29260727,683.51,682.22,0.46494186]
[1748531136643,0.29260727,683.51,682.27,0.46494186]
[1748531137641,0.29260727,683.51,682.28,0.46494186]
[1748531137847,0.29260727,683.51,682.25,0.46494186]
[1748531138243,0.29260727,683.51,682.23,0.46494186]
[1748531138449,0.29260727,683.51,682.22,0.46494186]
[1748531139350,0.29260727,683.51,682.13,0.46494186]
[1748531139546,0.29260727,683.51,682.12,0.485]
[1748531145155,0.29260727,683.51,682.17,0.46494186]
[1748531145854,0.29260727,683.51,682.15,0.46494186]
[1748531147151,0.29260727,683.51,682.16,0.46494186]
[1748531147350,0.29260727,683.51,682.12,0.485]
[1748531154458,0.29260727,683.51,682.18,0.46494186]
[1748531154657,0.29260727,683.51,682.12,0.485]
[1748531154658,0.29260727,683.51,682.16,0.46494186]
[1748531155056,0.29260727,683.51,682.12,0.485]
[1748531155057,0.29260727,683.51,682.19,0.46494186]
[1748531156262,0.29260727,683.51,682.2,0.46494186]
[1748531156558,0.29260727,683.51,682.18,0.46494186]
[1748531157263,0.29260727,683.51,682.19,0.46494186]
[1748531157958,0.29260727,683.51,682.2,0.46494186]
[1748531158163,0.29260727,683.51,682.24,0.46494186]
[1748531158363,0.29260727,683.51,682.25,0.46494186]
[1748531159166,0.29260727,683.51,682.26,0.46494186]
[1748531159365,0.29260727,683.51,682.23,0.46494186]
[1748531160161,0.29260727,683.51,682.25,0.46494186]
[1748531160861,0.29260727,683.51,682.24,0.46494186]
[1748531161867,0.29260727,683.51,682.22,0.46494186]
[1748531162061,0.29260727,683.51,682.15,0.46494186]
[1748531162262,0.29260727,683.51,682.14,0.46494186]
[1748531162964,0.29260727,683.51,682.16,0.46494186]
[1748531163266,0.29260727,683.51,682.15,0.46494186]
[1748531163462,0.29260727,683.51,682.13,0.46494186]
[1748531164159,0.29260727,683.51,682.11,0.29320784]
[1748531164160,0.29260727,683.51,682.12,0.46494186]
[1748531164365,0.29260727,683.51,682.11,0.29320784]
[1748531165863,0.29260727,683.51,682.12,0.482]
[1748531166863,0.29260727,683.51,682.15,0.46494186]
[1748531167068,0.29260727,683.51,682.12,0.94694186]
[1748531167466,0.29260727,683.51,682.12,0.482]
[1748531171974,0.25479199,683.68,682.12,0.482]
[1748531201798,0.25479199,683.68,681.99,0.46494186]
[1748531201996,0.29254307,683.66,681.99,0.46494186]
[1748531202402,0.29254307,683.66,682.0,0.46494186]
[1748531202697,0.29254307,683.66,681.98,0.46494186]
[1748531203199,0.29254307,683.66,682.0,0.46494186]
[1748531203402,0.29254307,683.66,682.01,0.46494186]
[1748531203903,0.29254307,683.66,682.02,0.442]
[1748531206506,0.29254307,683.66,682.04,0.46494186]
[1748531207100,0.29254307,683.66,682.05,0.46494186]
[1748531207501,0.29254307,683.66,682.07,0.46494186]
[1748531207699,0.29254307,683.66,682.09,0.46494186]
[1748531208401,0.29254307,683.66,682.1,0.46494186]
[1748531208805,0.29254307,683.66,682.02,0.442]
[1748531208806,0.29254307,683.66,682.11,0.46494186]
[1748531209198,0.29254307,683.66,682.02,0.442]
[1748531238828,0.29254307,683.66,681.36,0.46494186]
[1748531239127,0.29254307,683.66,680.74,0.46494186]
[1748531239128,0.29254307,683.66,681.34,0.46494186]
[1748531239524,0.29254307,683.66,681.27,0.46494186]
[1748531239722,0.29254307,683.66,681.27,0.29356936]
[1748531239926,0.29254307,683.66,681.27,0.75851122]
[1748531240827,0.29254307,683.66,681.27,0.29356936]
[1748531241528,0.29254307,683.66,681.28,0.443]
[1748531248935,0.29254307,683.66,681.29,0.29356074]
[1748531252337,0.29254307,683.66,681.29,0.7585026]
[1748531252734,0.29254307,683.66,681.29,0.29356074]
[1748531253437,0.29254307,683.66,681.38,0.46494186]
[1748531253833,0.29254307,683.66,681.39,0.46494186]
[1748531254438,0.29254307,683.66,681.42,0.46494186]
[1748531254940,0.29254307,683.66,681.43,0.46494186]
[1748531257036,0.29254307,683.66,681.29,0.29356074]
[1748531257037,0.29254307,683.66,681.45,0.46494186]
[1748531257635,0.29254307,683.66,681.44,0.46494186]
[1748531257839,0.29254307,683.66,681.45,0.46494186]
[1748531258036,0.29254307,683.66,681.46,0.46494186]
[1748531258335,0.29254307,683.66,681.47,0.46494186]
[1748531258737,0.29254307,683.66,681.48,0.46494186]
[1748531259139,0.29254307,683.66,681.47,0.46494186]
[1748531259337,0.29254307,683.66,681.37,0.46494186]
[1748531259835,0.29254307,683.66,681.36,0.46494186]
[1748531260241,0.29254307,683.66,681.35,0.46494186]
[1748531260942,0.29254307,683.66,681.42,0.46494186]
[1748531262238,0.29254307,683.66,681.43,0.412]
[1748531262543,0.29254307,683.66,681.43,0.87694186]
[1748531262743,0.29254307,683.66,681.44,0.46494186]
[1748531262943,0.29254307,683.66,681.43,0.87694186]
[1748531263342,0.29254307,683.66,681.48,0.46494186]
[1748531263739,0.29254307,683.66,681.5,0.46494186]
[1748531264543,0.29254307,683.66,681.49,0.46494186]
[1748531264741,0.29254307,683.66,681.56,0.46494186]
[1748531264945,0.29254307,683.66,681.55,0.46494186]
[1748531265141,0.29254307,683.66,681.56,0.46494186]
[1748531265545,0.29254307,683.66,681.57,0.46494186]
[1748531265844,0.29254307,683.66,681.58,0.46494186]
[1748531266045,0.29254307,683.66,681.6,0.46494186]
[1748531266442,0.29254307,683.66,681.61,0.46494186]
[1748531266641,0.29254307,683.66,681.62,0.46494186]
[1748531268547,0.29254307,683.66,681.61,0.46494186]
[1748531268943,0.29254307,683.66,681.62,0.46494186]
[1748531269345,0.29254307,683.66,681.61,0.46494186]
[1748531269545,0.29254307,683.66,681.62,0.46494186]
[1748531269943,0.29254307,683.66,681.63,0.46494186]
[1748531270750,0.29254307,683.66,681.64,0.46494186]
[1748531274547,0.29254307,683.66,681.74,0.46494186]
[1748531274852,0.29254307,683.66,681.77,0.46494186]
[1748531275448,0.29254307,683.66,681.78,0.46494186]
[1748531275647,0.29254307,683.66,681.8,0.46494186]
[1748531275851,0.29254307,683.66,681.83,0.46494186]
[1748531276349,0.29254307,683.66,681.44,0.37279669]
[1748531276350,0.29254307,683.66,681.85,0.46494186]
[1748531276851,0.29254307,683.66,681.43,0.412]
[1748531278059,0.29254307,683.66,681.43,0.87694186]
[1748531278253,0.29254307,683.66,681.43,0.412]
[1748531280855,0.29254307,683.66,681.54,0.46494186]
[1748531281359,0.29254307,683.66,681.53,0.46494186]
[1748531281561,0.29254307,683.66,681.52,0.46494186]
[1748531281956,0.29254307,683.66,681.43,0.412]
[1748531299371,0.29254307,683.66,679.84,0.46494186]
[1748531299567,0.29254307,683.66,680.03,0.29410467]
[1748531301469,0.29254307,683.66,680.04,0.373]
[1748531301669,0.29254307,683.66,680.21,0.29402684]
[1748531306067,0.29254307,683.66,680.35,0.46494186]
[1748531306367,0.29254307,683.66,680.37,0.75889955]
[1748531306575,0.29254307,683.66,680.39,0.29394905]
[1748531307272,0.29254307,683.66,680.46,0.46494186]
[1748531307473,0.29254307,683.66,680.48,0.29391018]
[1748531308175,0.29254307,683.66,680.5,0.46494186]
[1748531308475,0.29254307,683.66,680.52,0.2938929]
[1748531308671,0.29254307,683.66,680.53,0.46494186]
[1748531308877,0.29254307,683.66,680.56,0.46494186]
[1748531309071,0.29254307,683.66,680.58,0.29386699]
[1748531309470,0.29254307,683.66,680.74,0.46494186]
[1748531309776,0.29254307,683.66,680.78,0.46494186]
[1748531309976,0.29254307,683.66,680.79,0.29377634]
[1748531310372,0.29254307,683.66,680.79,0.7587182]
[1748531310578,0.29254307,683.66,680.84,0.46494186]
[1748531310770,0.29254307,683.66,680.83,0.46494186]
[1748531311173,0.29254307,683.66,680.83,0.75870094]
[1748531311376,0.29254307,683.66,680.83,0.29375908]
[1748531311772,0.29254307,683.66,680.85,0.46494186]
[1748531311977,0.29254307,683.66,680.86,0.29374614]
[1748531312178,0.29254307,683.66,680.86,0.758688]
[1748531312578,0.29254307,683.66,680.88,0.46494186]
[1748531312779,0.29254307,683.66,680.92,0.46494186]
[1748531312978,0.29254307,683.66,680.89,0.2937332]
[1748531312979,0.29254307,683.66,680.94,0.46494186]
[1748531313276,0.29254307,683.66,680.96,0.46494186]
[1748531313673,0.29254307,683.66,680.9,0.46494186]
[1748531313881,0.29254307,683.66,680.93,0.46494186]
[1748531314274,0.29254307,683.66,680.92,0.46494186]
[1748531314677,0.29254307,683.66,680.9,0.29372888]
[1748531314678,0.29254307,683.66,680.96,0.46494186]
[1748531314877,0.29254307,683.66,680.97,0.46494186]
[1748531315077,0.29254307,683.66,680.96,0.46494186]
[1748531315373,0.29254307,683.66,680.97,0.46494186]
[1748531315579,0.29254307,683.66,680.95,0.46494186]
[1748531315773,0.29254307,683.66,680.96,0.46494186]
[1748531316176,0.29254307,683.66,680.97,0.88994186]
[1748531317274,0.29254307,683.66,680.98,0.46494186]
[1748531319382,0.29254307,683.66,680.97,0.425]
[1748531319383,0.29254307,683.66,681.01,0.46494186]
[1748531319577,0.29254307,683.66,681.02,0.46494186]
[1748531320583,0.29254307,683.66,681.03,0.46494186]
[1748531321483,0.29254307,683.66,681.06,0.46494186]
[1748531321685,0.29254307,683.66,681.04,0.46494186]
[1748531322283,0.29254307,683.66,681.05,0.46494186]
[1748531322680,0.29254307,683.66,681.04,0.46494186]
[1748531323182,0.29254307,683.66,681.05,0.46494186]
[1748531323583,0.29254307,683.66,681.19,0.46494186]
[1748531324183,0.29254307,683.66,681.12,0.46494186]
[1748531324487,0.29254307,683.66,680.98,0.46494186]
[1748531324687,0.29254307,683.66,680.99,0.46494186]
[1748531325488,0.29254307,683.66,680.98,0.46494186]
[1748531325689,0.29254307,683.66,680.99,0.46494186]
[1748531326386,0.29254307,683.66,680.97,0.88994186]
[1748531326588,0.25513758,683.0,680.98,0.46494186]
[1748531326789,0.29286864,682.9,680.98,0.46494186]
[1748531327691,0.29286864,682.9,680.99,0.46494186]
[1748531327886,0.29286864,682.9,680.98,0.46494186]
[1748531328091,0.29286864,682.9,680.99,0.46494186]
[1748531329785,0.29286864,682.9,681.0,0.46494186]
[1748531329987,0.29286864,682.9,680.99,0.46494186]
[1748531330188,0.29286864,682.9,680.98,0.46494186]
[1748531331192,0.29286864,682.9,680.99,0.46494186]
[1748531331789,0.29286864,682.9,680.97,0.88994186]
[1748531332394,0.29286864,682.9,680.97,0.425]
[1748531333095,0.29286864,682.9,681.05,0.46494186]
[1748531333295,0.29286864,682.9,681.06,0.46494186]
[1748531333991,0.29286864,682.9,681.05,0.46494186]
[1748531334591,0.29286864,682.9,681.04,0.46494186]
[1748531334792,0.29286864,682.9,681.05,0.46494186]
[1748531335595,0.29286864,682.9,681.06,0.46494186]
[1748531336597,0.29286864,682.9,681.09,0.46494186]
[1748531336796,0.29286864,682.9,681.08,0.46494186]
[1748531337196,0.29286864,682.9,681.09,0.46494186]
[1748531337593,0.29286864,682.9,681.12,0.46494186]
[1748531337997,0.29286864,682.9,681.11,0.46494186]
[1748531338198,0.29286864,682.9,681.12,0.46494186]
[1748531338793,0.29286864,682.9,680.97,0.425]
[1748531338794,0.29286864,682.9,681.14,0.46494186]
[1748531339803,0.29286864,682.9,681.16,0.46494186]
[1748531339997,0.29286864,682.9,681.17,0.46494186]
[1748531340192,0.29286864,682.9,681.16,0.46494186]
[1748531340597,0.29286864,682.9,680.97,0.425]
[1748531340598,0.29286864,682.9,681.19,0.46494186]
[1748531340897,0.29286864,682.9,681.18,0.46494186]
[1748531341394,0.29286864,682.9,681.16,0.46494186]
[1748531341895,0.29286864,682.9,681.17,0.46494186]
[1748531342398,0.29286864,682.9,681.16,0.46494186]
[1748531342594,0.29286864,682.9,681.18,0.46494186]
[1748531343001,0.29286864,682.9,681.17,0.46494186]
[1748531343601,0.29286864,682.9,681.18,0.46494186]
[1748531344001,0.29286864,682.9,681.17,0.46494186]
[1748531345202,0.29286864,682.9,681.16,0.46494186]